fUSD/lending_fUSD_20240924
["ID","MTS","AMOUNT","RATE_DAILY","PERIOD"]
[339064354,1727187043991,-356.15833761,0.00012899,2]
[339064355,1727187044000,-500.0,0.00012899,2]
[339064356,1727187044009,-500.0,0.00012899,2]
[339064357,1727187044018,-500.0,0.00012899,2]
[339064358,1727187044027,-500.0,0.00012899,2]
[339064359,1727187044036,-500.0,0.00012899,2]
[339064360,1727187044046,-500.0,0.00012899,2]
[339064361,1727187044056,-500.0,0.00012899,2]
[339064362,1727187044065,-500.0,0.00012899,2]
[339064363,1727187044074,-500.0,0.00012899,2]
[339064364,1727187044083,-500.0,0.00012899,2]
[339064365,1727187044093,-500.0,0.00012899,2]
[339064366,1727187044102,-500.0,0.00012899,2]
[339064367,1727187044112,-476.69171068,0.00012899,2]
[339064368,1727187044121,-500.0,0.00012899,2]
[339064369,1727187044131,-500.0,0.00012899,2]
[339064370,1727187044140,-500.0,0.00012899,2]
[339064371,1727187044150,-500.0,0.00012899,2]
[339064372,1727187044159,-500.0,0.00012899,2]
[339064373,1727187044168,-500.0,0.00012899,2]
[339064374,1727187044178,-500.0,0.00012899,2]
[339064375,1727187044191,-625.57278159,0.00012899,2]
[339064376,1727187044202,-500.0,0.00012899,2]
[339064377,1727187044212,-500.0,0.00012899,2]
[339064378,1727187044221,-500.0,0.00012899,2]
[339064379,1727187044230,-500.0,0.00012899,2]
[339064380,1727187044239,-500.0,0.00012899,2]
[339064381,1727187044249,-500.0,0.00012899,2]
[339064382,1727187044259,-500.0,0.00012899,2]
[339064383,1727187044268,-500.0,0.00012899,2]
[339064384,1727187044277,-500.0,0.00012899,2]
[339064385,1727187044287,-500.0,0.00012899,2]
[339064386,1727187044296,-500.0,0.00012899,2]
[339064387,1727187044306,-500.0,0.00012899,2]
[339064388,1727187044315,-356.04554159,0.00012899,2]
[339064389,1727187044324,-500.0,0.00012899,2]
[339064390,1727187044334,-500.0,0.00012899,2]
[339064391,1727187044343,-500.0,0.00012899,2]
[339064392,1727187044352,-500.0,0.00012899,2]
[339064393,1727187044362,-500.0,0.00012899,2]
[339064394,1727187044371,-500.0,0.00012899,2]
[339064395,1727187044381,-500.0,0.00012899,2]
[339064396,1727187044390,-500.0,0.00012899,2]
[339064397,1727187044399,-500.0,0.00012899,2]
[339064398,1727187044408,-500.0,0.00012899,2]
[339064399,1727187044418,-500.0,0.00012899,2]
[339064400,1727187044427,-417.93129849,0.00012899,2]
[339064401,1727187044439,-500.0,0.00012899,2]
[339064402,1727187044448,-500.0,0.00012899,2]
[339064403,1727187044457,-500.0,0.00012899,2]
[339064404,1727187044466,-500.0,0.00012899,2]
[339064405,1727187044475,-500.0,0.00012899,2]
[339064406,1727187044484,-500.0,0.00012899,2]
[339064407,1727187044493,-500.0,0.00012899,2]
[339064408,1727187044502,-1916.5,0.00012899,2]
[339064409,1727187044511,-301.88932008,0.00012899,2]
[339064410,1727187044520,-1916.5,0.00012899,2]
[339064411,1727187044529,-1916.5,0.00012899,2]
[339064412,1727187044538,-1916.5,0.00012899,2]
[339064413,1727187044548,-1916.5,0.00012899,2]
[339064414,1727187044557,-1916.5,0.00012899,2]
[339064415,1727187044566,-1916.5,0.00012899,2]
[339064416,1727187044575,-1916.5,0.00012899,2]
[339064417,1727187044584,-1916.5,0.00012899,2]
[339064418,1727187044593,-1916.5,0.00012899,2]
[339064419,1727187044604,-1916.5,0.00012899,2]
[339064420,1727187044614,-1916.5,0.00012899,2]
[339064421,1727187044623,-1916.5,0.00012899,2]
[339064422,1727187044632,-1916.5,0.00012899,2]
[339064423,1727187044641,-1916.5,0.00012899,2]
[339064424,1727187044650,-1916.5,0.00012899,2]
[339064425,1727187044659,-1916.5,0.00012899,2]
[339064426,1727187044669,-1916.5,0.00012899,2]
[339064427,1727187044678,-1916.5,0.00012899,2]
[339064428,1727187044689,-1916.5,0.00012899,2]
[339064429,1727187044698,-1916.5,0.00012899,2]
[339064430,1727187044708,-1916.64765481,0.00012899,2]
[339064431,1727187044717,-502.06,0.00012899,2]
[339064432,1727187044727,-502.06,0.00012899,2]
[339064433,1727187044736,-502.06,0.00012899,2]
[339064434,1727187044746,-502.06,0.00012899,2]
[339064435,1727187044755,-502.06,0.00012899,2]
[339064436,1727187044764,-502.06,0.00012899,2]
[339064437,1727187044774,-502.06,0.00012899,2]
[339064438,1727187044938,-500.0,0.00012899,2]
[339064439,1727187044947,-502.06,0.00012899,2]
[339064440,1727187044956,-500.0,0.00012899,2]
[339064441,1727187044966,-502.06,0.00012899,2]
[339064442,1727187044975,-500.0,0.00012899,2]
[339064443,1727187044985,-502.06,0.00012899,2]
[339064444,1727187044994,-500.0,0.00012899,2]
[339064445,1727187045003,-500.0,0.00012899,2]
[339064446,1727187045014,-502.06,0.00012899,2]
[339064447,1727187045024,-500.0,0.00012899,2]
[339064448,1727187045033,-502.06,0.00012899,2]
[339064449,1727187045043,-500.0,0.00012899,2]
[339064450,1727187045052,-502.06,0.00012899,2]
[339064451,1727187045062,-500.0,0.00012899,2]
[339064452,1727187045071,-502.06,0.00012899,2]
[339064453,1727187045081,-284.35,0.00012899,2]
[339064454,1727187045090,-502.06,0.00012899,2]
[339064455,1727187045100,-502.06,0.00012899,2]
[339064456,1727187045109,-502.06,0.00012899,2]
[339064457,1727187045119,-502.06,0.00012899,2]
[339064458,1727187045129,-502.06,0.00012899,2]
[339064459,1727187045139,-502.06,0.00012899,2]
[339064460,1727187045148,-502.06,0.00012899,2]
[339064461,1727187045158,-502.06,0.00012899,2]
[339064462,1727187045167,-502.17,0.00012899,2]
[339064463,1727187045176,-1114.65,0.00012899,2]
[339064464,1727187045188,-1114.65,0.00012899,2]
[339064465,1727187045197,-1114.65,0.00012899,2]
[339064466,1727187045207,-1114.65,0.00012899,2]
[339064467,1727187045217,-1114.65,0.00012899,2]
[339064468,1727187045227,-1114.65,0.00012899,2]
[339064469,1727187045236,-1114.65,0.00012899,2]
[339064470,1727187045246,-1114.65,0.00012899,2]
[339064471,1727187045256,-1114.65,0.00012899,2]
[339064474,1727187045266,-1114.65,0.00012899,2]
[339064475,1727187045275,-1114.65,0.00012899,2]
[339064476,1727187045285,-1114.65,0.00012899,2]
[339064477,1727187045295,-1114.65,0.00012899,2]
[339064478,1727187045305,-1114.65,0.00012899,2]
[339064479,1727187045314,-1114.65,0.00012899,2]
[339064480,1727187045324,-1114.65,0.00012899,2]
[339064481,1727187045333,-1114.65,0.00012899,2]
[339064482,1727187045342,-1114.65,0.00012899,2]
[339064483,1727187045353,-1114.65,0.00012899,2]
[339064486,1727187045362,-1114.69754301,0.00012899,2]
[339064488,1727187045371,-238.33010189,0.00012899,2]
[339064489,1727187045381,-500.0,0.00012899,2]
[339064490,1727187045390,-500.0,0.00012899,2]
[339064491,1727187045399,-500.0,0.00012899,2]
[339064492,1727187045409,-500.0,0.00012899,2]
[339064493,1727187045419,-500.0,0.00012899,2]
[339064494,1727187045428,-500.0,0.00012899,2]
[339064495,1727187045439,-500.0,0.00012899,2]
[339064496,1727187045455,-500.0,0.00012899,2]
[339064497,1727187045465,-500.0,0.00012899,2]
[339064498,1727187045474,-500.0,0.00012899,2]
[339064499,1727187045483,-500.0,0.00012899,2]
[339064500,1727187045492,-500.0,0.00012899,2]
[339064502,1727187045501,-500.0,0.00012899,2]
[339064503,1727187045511,-500.0,0.00012899,2]
[339064504,1727187045520,-500.0,0.00012899,2]
[339064505,1727187045530,-500.0,0.00012899,2]
[339064506,1727187045539,-500.0,0.00012899,2]
[339064507,1727187045548,-500.0,0.00012899,2]
[339064508,1727187045557,-500.0,0.00012899,2]
[339064509,1727187045566,-500.0,0.00012899,2]
[339064510,1727187045575,-500.0,0.00012899,2]
[339064511,1727187045584,-500.0,0.00012899,2]
[339064512,1727187045593,-500.0,0.00012899,2]
[339064513,1727187045603,-500.0,0.00012899,2]
[339064514,1727187045613,-500.0,0.00012899,2]
[339064515,1727187045623,-500.0,0.00012899,2]
[339064516,1727187045632,-500.0,0.00012899,2]
[339064517,1727187045642,-500.0,0.00012899,2]
[339064518,1727187045652,-216.09860658,0.00012899,2]
[339064519,1727187045661,-329.5516771,0.00012899,2]
[339064520,1727187045671,-500.0,0.00012899,2]
[339064521,1727187045680,-500.0,0.00012899,2]
[339064522,1727187045689,-500.47756914,0.00012899,2]
[339064523,1727187045699,-500.0,0.00012899,2]
[339064524,1727187045708,-500.0,0.00012899,2]
[339064525,1727187045718,-541.1276806,0.00012899,2]
[339064526,1727187045727,-541.14,0.00012899,2]
[339064527,1727187045737,-541.14,0.00012899,2]
[339064528,1727187045746,-541.14,0.00012899,2]
[339064529,1727187045756,-541.14,0.00012899,2]
[339064530,1727187045766,-541.14,0.00012899,2]
[339064531,1727187045777,-500.0,0.00012899,2]
[339064532,1727187045789,-541.14,0.00012899,2]
[339064533,1727187045800,-500.0,0.00012899,2]
[339064534,1727187045812,-541.14,0.00012899,2]
[339064535,1727187045823,-500.0,0.00012899,2]
[339064536,1727187045832,-541.14,0.00012899,2]
[339064537,1727187045842,-500.0,0.00012899,2]
[339064538,1727187045853,-541.14,0.00012899,2]
[339064540,1727187045864,-500.0,0.00012899,2]
[339064541,1727187045875,-541.14,0.00012899,2]
[339064543,1727187045885,-541.14,0.00012899,2]
[339064545,1727187045895,-500.0,0.00012899,2]
[339064547,1727187045904,-500.0,0.00012899,2]
[339064549,1727187045913,-541.14,0.00012899,2]
[339064550,1727187045923,-541.14,0.00012899,2]
[339064551,1727187045934,-500.0,0.00012899,2]
[339064552,1727187045948,-541.14,0.00012899,2]
[339064553,1727187045957,-500.0,0.00012899,2]
[339064554,1727187045967,-541.14,0.00012899,2]
[339064555,1727187045977,-500.0,0.00012899,2]
[339064556,1727187045986,-541.14,0.00012899,2]
[339064557,1727187045995,-500.0,0.00012899,2]
[339064558,1727187046005,-541.14,0.00012899,2]
[339064559,1727187046015,-500.0,0.00012899,2]
[339064560,1727187046024,-541.14,0.00012899,2]
[339064561,1727187046035,-500.0,0.00012899,2]
[339064562,1727187046045,-541.14,0.00012899,2]
[339064563,1727187046056,-500.0,0.00012899,2]
[339064564,1727187046066,-541.14,0.00012899,2]
[339064565,1727187046076,-500.0,0.00012899,2]
[339064566,1727187046086,-541.14,0.00012899,2]
[339064567,1727187046096,-500.0,0.00012899,2]
[339064568,1727187046105,-541.31157026,0.00012899,2]
[339064569,1727187046115,-500.0,0.00012899,2]
[339064570,1727187046124,-500.0,0.00012899,2]
[339064571,1727187046134,-500.0,0.00012899,2]
[339064572,1727187046143,-500.0,0.00012899,2]
[339064573,1727187046153,-526.49,0.00012899,2]
[339064574,1727187046163,-500.0,0.00012899,2]
[339064575,1727187046174,-500.0,0.00012899,2]
[339064576,1727187046185,-500.0,0.00012899,2]
[339064577,1727187046196,-500.0,0.00012899,2]
[339064578,1727187046206,-500.0,0.00012899,2]
[339064579,1727187046216,-500.0,0.00012899,2]
[339064580,1727187046225,-500.0,0.00012899,2]
[339064581,1727187046235,-500.0,0.00012899,2]
[339064582,1727187046244,-500.0,0.00012899,2]
[339064583,1727187046254,-500.0,0.00012899,2]
[339064584,1727187046263,-500.0,0.00012899,2]
[339064585,1727187046272,-500.0,0.00012899,2]
[339064586,1727187046282,-500.0,0.00012899,2]
[339064587,1727187046291,-500.0,0.00012899,2]
[339064588,1727187046300,-559.9302435,0.00012899,2]
[339064589,1727187046312,-500.0,0.00012899,2]
[339064590,1727187046321,-500.0,0.00012899,2]
[339064591,1727187046330,-500.0,0.00012899,2]
[339064592,1727187046339,-500.0,0.00012899,2]
[339064593,1727187046349,-500.0,0.00012899,2]
[339064594,1727187046358,-500.0,0.00012899,2]
[339064595,1727187046368,-500.0,0.00012899,2]
[339064596,1727187046378,-500.0,0.00012899,2]
[339064597,1727187046387,-500.0,0.00012899,2]
[339064598,1727187046396,-500.0,0.00012899,2]
[339064599,1727187046406,-500.0,0.00012899,2]
[339064600,1727187046415,-644.77703234,0.00012899,2]
[339064601,1727187046424,-500.0,0.00012899,2]
[339064602,1727187046434,-500.0,0.00012899,2]
[339064603,1727187046446,-500.0,0.00012899,2]
[339064604,1727187046456,-500.0,0.00012899,2]
[339064605,1727187046465,-469.30974602,0.00012899,2]
[339064606,1727187046474,-756.0,0.000129,2]
[339064607,1727187046484,-588.8440343,0.000129,2]
[339064608,1727187046493,-184490.97967158,0.000129,2]
[339064609,1727187046502,-5394406.3928255,0.000129,2]
[339064610,1727187046698,-49213.75617473,0.000129,2]
[339064611,1727187046710,-1339.999998,0.000129,2]
[339064612,1727187046725,-78079.80296049,0.000129,2]
[339064613,1727187046737,-495.55389865,0.000129,2]
[339064614,1727187046748,-3157.154,0.000129,2]
[339064615,1727187046760,-1415.07697679,0.000129,2]
[339064616,1727187046771,-1131.59228596,0.000129,2]
[339064617,1727187046786,-730.55933782,0.000129,2]
[339064618,1727187046797,-731.0,0.000129,2]
[339064619,1727187046808,-300.4416464,0.000129,2]
[339064620,1727187046819,-500.0,0.000129,2]
[339064621,1727187046831,-1206.83348292,0.000129,2]
[339064622,1727187046842,-3537.73874138,0.000129,2]
[339064623,1727187046853,-1259.96086,0.000129,2]
[339064624,1727187046866,-376.50517018,0.000129,2]
[339064625,1727187046879,-1087.46169813,0.000129,2]
[339064626,1727187046890,-6628.14093543,0.000129,2]
[339064627,1727187046901,-566.12845384,0.000129,2]
[339064628,1727187046955,-1535.85323252,0.000129,2]
[339064629,1727187046966,-5867.91004832,0.000129,2]
[339064630,1727187046978,-1733.24505527,0.000129,2]
[339064631,1727187046989,-12796.49059338,0.000129,2]
[339064632,1727187047000,-589.17,0.000129,2]
[339064633,1727187047012,-6723.34743954,0.000129,2]
[339064634,1727187047024,-7365.16641705,0.000129,2]
[339064635,1727187047036,-254759.9988549,0.000129,2]
[339064636,1727187047047,-11631.41360967,0.000129,2]
[339064637,1727187047117,-12934.64864482,0.000129,2]
[339064638,1727187047129,-308.1,0.000129,2]
[339064639,1727187047145,-355.99679615,0.000129,2]
[339064640,1727187047156,-27116.73287553,0.000129,2]
[339064641,1727187047415,-658.43606999,0.000129,2]
[339064642,1727187314907,200.0,0.00022,120]
[339064643,1727187588896,5466.76,0.00011,2]
[339064644,1727187653057,154.65,0.00010959,2]
[339064645,1727187808646,152.83450543,0.0001,2]
[339064646,1727187879262,514.08,9.359e-05,2]
[339064648,1727187967634,966.89727789,0.0001,2]
[339064649,1727188031544,2100.0,0.00011058,2]
[339064650,1727188031932,900.0,0.00011058,2]
[339064664,1727188164537,7527.347149,0.0001105,2]
[339064667,1727188165223,2733.59970013,0.00021,60]
[339064678,1727188231747,-3311.65,0.00011106,2]
[339064679,1727188231756,-162.6,0.00011115,2]
[339064680,1727188231766,-150.17,0.00011143,2]
[339064681,1727188231775,-157.71,0.00011148,2]
[339064682,1727188231785,-300.0,0.00011241,2]
[339064683,1727188231794,-250.0,0.00011277,2]
[339064684,1727188231804,-172.19,0.00011319,2]
[339064685,1727188231813,-177.03,0.0001137,2]
[339064686,1727188231823,-250.0,0.00011466,2]
[339064687,1727188231832,-546.83,0.00011466,2]
[339064688,1727188231841,-1232.97,0.00011588,2]
[339064689,1727188231851,-150.0,0.00011588,2]
[339064690,1727188231860,-2537.17,0.00011588,2]
[339064691,1727188231869,-150.0,0.00011589,2]
[339064692,1727188231879,-150.0,0.00011589,2]
[339064693,1727188231888,-507.52,0.00011589,2]
[339064694,1727188231897,-499.99,0.00011589,2]
[339064695,1727188231907,-12976.11316229,0.00011589,2]
[339064696,1727188231918,-457.01764906,0.00011589,2]
[339064697,1727188231929,-12331.03918865,0.00011589,2]
[339064698,1727188231939,-5125.55153152,0.0001159,2]
[339064699,1727188235143,-348.26422483,0.0001159,2]
[339064700,1727188235155,-2223.72614365,0.0001159,2]
[339064701,1727188235164,-514.08,0.00011623,2]
[339064702,1727188235174,-3427.28,0.00011623,2]
[339064703,1727188235183,-168.39,0.00011623,2]
[339064704,1727188235192,-152.86,0.00011712,2]
[339064705,1727188235202,-422.91,0.00011741,2]
[339064706,1727188235214,-23830.31703739,0.0001178,2]
[339064707,1727188235223,-8200.43681896,0.0001179,2]
[339064708,1727188235238,-650.0,0.0001179,2]
[339064709,1727188235249,-1149.55318104,0.0001179,2]
[339064711,1727188235258,-1000.0,0.00011799,2]
[339064712,1727188235267,-845.73,0.00011841,2]
[339064714,1727188235277,-422.91,0.00011841,2]
[339064715,1727188235286,-168.7,0.00011926,2]
[339064716,1727188235295,-165.94,0.0001195,2]
[339064717,1727188235304,-1244.28,0.00012041,2]
[339064718,1727188235313,-433.74,0.00012041,2]
[339064719,1727188235323,-422.91,0.00012041,2]
[339064720,1727188235332,-302.91,0.00012082,2]
[339064721,1727188235341,-150.0,0.00012082,2]
[339064723,1727188235350,-358.13,0.00012082,2]
[339064725,1727188235359,-428.31,0.00012082,2]
[339064727,1727188235368,-150.0,0.00012082,2]
[339064729,1727188235379,-150.0,0.00012082,2]
[339064731,1727188235388,-150.0,0.00012082,2]
[339064733,1727188235397,-358.13,0.00012082,2]
[339064735,1727188235406,-428.31,0.00012082,2]
[339064737,1727188235415,-150.0,0.00012082,2]
[339064739,1727188235426,-150.0,0.00012082,2]
[339064741,1727188235435,-428.31,0.00012082,2]
[339064743,1727188235444,-358.13,0.00012082,2]
[339064745,1727188235454,-150.0,0.00012082,2]
[339064747,1727188235474,-428.31,0.00012082,2]
[339064749,1727188235484,-150.0,0.00012082,2]
[339064751,1727188235493,-358.13,0.00012082,2]
[339064753,1727188235503,-150.0,0.00012082,2]
[339064755,1727188235512,-150.0,0.00012082,2]
[339064757,1727188235521,-150.0,0.00012082,2]
[339064759,1727188235531,-428.31,0.00012082,2]
[339064761,1727188235540,-160.57,0.00012082,2]
[339064763,1727188235549,-429.78,0.00012082,2]
[339064765,1727188235559,-150.0,0.00012082,2]
[339064767,1727188235568,-421.83,0.00012141,2]
[339064769,1727188235577,-150.0,0.00012287,2]
[339064771,1727188235587,-1401.84894946,0.00012377,2]
[339064774,1727188235598,-7947.78195854,0.00012377,2]
[339064775,1727188235607,-305.265356,0.00012377,2]
[339064776,1727188235616,-2347.86262111,0.00012377,2]
[339064777,1727188235628,-5316.39247089,0.00012377,2]
[339064778,1727188235638,-246.421497,0.00012377,2]
[339064779,1727188235647,-158.15908,0.00012377,2]
[339064780,1727188235656,-4674.815454,0.00012377,2]
[339064781,1727188235666,-3832.127546,0.00012377,2]
[339064782,1727188235675,-152.632678,0.00012377,2]
[339064783,1727188235684,-184.073224,0.00012377,2]
[339064784,1727188235694,-213.1901,0.00012432,2]
[339064785,1727188235703,-515.8284,0.0001248,2]
[339064786,1727188235719,-5286.66715252,0.0001248,2]
[339064787,1727188235728,-5555.589,0.00012486,2]
[339064788,1727188235737,-150.34,0.000125,2]
[339064789,1727188235745,-5286.6671525,0.00012516,2]
[339064790,1727188235754,-9349.630908,0.00012532,2]
[339064791,1727188235764,-305.265356,0.00012532,2]
[339064792,1727188235773,-7664.255092,0.00012532,2]
[339064793,1727188235782,-246.421497,0.00012532,2]
[339064794,1727188235791,-4674.815454,0.00012532,2]
[339064795,1727188235800,-3832.127546,0.00012532,2]
[339064796,1727188235809,-152.632678,0.00012532,2]
[339064797,1727188235818,-5286.6671525,0.00012551,2]
[339064798,1727188235827,-2303.0118,0.0001258,2]
[339064799,1727188235837,-16576.5335,0.0001258,2]
[339064800,1727188235846,-158.15908,0.00012583,2]
[339064801,1727188235855,-13614.9266,0.00012586,2]
[339064802,1727188235864,-4991.0554,0.00012586,2]
[339064803,1727188235873,-5286.6671525,0.00012587,2]
[339064804,1727188235883,-5286.6671525,0.00012622,2]
[339064805,1727188235892,-150.0,0.00012625,2]
[339064806,1727188235901,-300.50914619,0.0001265,2]
[339064807,1727188235910,-175.5238322,0.00012655,2]
[339064808,1727188235919,-5286.6671525,0.00012658,2]
[339064809,1727188235929,-150.0,0.00012659,2]
[339064810,1727188235938,-150.0,0.00012677,2]
[339064811,1727188235946,-150.0,0.00012684,2]
[339064812,1727188235961,-9349.630908,0.00012686,2]
[339064813,1727188235970,-7664.255092,0.00012686,2]
[339064814,1727188235980,-305.265356,0.00012686,2]
[339064815,1727188235989,-246.421497,0.00012686,2]
[339064816,1727188235998,-4674.815454,0.00012686,2]
[339064817,1727188236007,-3832.127546,0.00012686,2]
[339064818,1727188236016,-152.632678,0.00012686,2]
[339064819,1727188236024,-5286.6671525,0.00012693,2]
[339064820,1727188236034,-150.0,0.00012706,2]
[339064821,1727188236044,-5286.6671525,0.00012729,2]
[339064822,1727188236054,-150.0,0.00012757,2]
[339064823,1727188236063,-5286.6671525,0.00012764,2]
[339064824,1727188236072,-219.09233891,0.00012768,2]
[339064825,1727188236082,-362.31252571,0.0001277,2]
[339064826,1727188236093,-13710.05470322,0.0001278,2]
[339064827,1727188236103,-158.15908,0.00012789,2]
[339064828,1727188236113,-150.0,0.00012796,2]
[339064829,1727188236122,-168.71903338,0.00012796,2]
[339064830,1727188236132,-500.0,0.00012797,2]
[339064831,1727188236141,-200.0,0.00012797,2]
[339064832,1727188236151,-555.555,0.000128,2]
[339064833,1727188236160,-201.34185824,0.000128,2]
[339064834,1727188236169,-171.43919605,0.000128,2]
[339064835,1727188236178,-171.93,0.000128,2]
[339064836,1727188236188,-376.03091061,0.000128,2]
[339064837,1727188236197,-5286.6671525,0.000128,2]
[339064838,1727188236213,-150.0,0.00012809,2]
[339064839,1727188236226,-9349.630908,0.00012841,2]
[339064840,1727188236237,-7664.255092,0.00012841,2]
[339064841,1727188236246,-305.265356,0.00012841,2]
[339064842,1727188236255,-246.421497,0.00012841,2]
[339064843,1727188236265,-4674.815454,0.00012841,2]
[339064844,1727188236274,-3832.127546,0.00012841,2]
[339064845,1727188236283,-152.632678,0.00012841,2]
[339064846,1727188236292,-173.65709743,0.00012851,2]
[339064847,1727188236301,-394.719,0.00012851,2]
[339064848,1727188236310,-150.0,0.00012852,2]
[339064849,1727188236319,-150.25,0.0001286,2]
[339064850,1727188236329,-15785.69891051,0.0001287,2]
[339064851,1727188236338,-155234.5706323,0.0001287,2]
[339064852,1727188236350,-6339.5,0.0001287,2]
[339064853,1727188237878,-496.82884039,0.0001287,2]
[339064854,1727188237890,-646.57486979,0.0001287,2]
[339064855,1727188237900,-8214.16971278,0.0001287,2]
[339064856,1727188238030,-1924.6496,0.0001248,2]
[339064857,1727188238039,-5706.76558604,0.0001287,2]
[339064858,1727188238182,-13301.34632884,0.0001287,2]
[339064859,1727188238193,-3445.79092289,0.0001287,2]
[339064860,1727188238266,-7669.76506575,0.0001287,2]
[339064861,1727188238275,-404.66149449,0.00012873,2]
[339064862,1727188238284,-500.0,0.00012873,2]
[339064863,1727188238294,-500.0,0.00012876,2]
[339064864,1727188238303,-500.0,0.00012876,2]
[339064865,1727188238312,-500.0,0.00012876,2]
[339064866,1727188238322,-500.0,0.00012876,2]
[339064867,1727188238331,-500.0,0.00012876,2]
[339064868,1727188238341,-500.0,0.00012876,2]
[339064869,1727188238351,-500.0,0.00012876,2]
[339064870,1727188238360,-500.0,0.00012876,2]
[339064871,1727188238369,-500.0,0.00012876,2]
[339064872,1727188238379,-500.0,0.00012876,2]
[339064873,1727188238388,-500.0,0.00012876,2]
[339064874,1727188238397,-150.25,0.0001288,2]
[339064875,1727188238406,-150.25,0.0001288,2]
[339064876,1727188238415,-500.0,0.00012882,2]
[339064878,1727188238425,-500.0,0.00012882,2]
[339064880,1727188238434,-500.0,0.00012882,2]
[339064882,1727188238442,-507.51806971,0.00012882,2]
[339064884,1727188238451,-500.0,0.00012882,2]
[339064886,1727188238461,-15194.97,0.00012883,2]
[339064888,1727188238470,-150.25,0.0001289,2]
[339064889,1727188238479,-148668.15890147,0.0001289,2]
[339064891,1727188238488,-150.25,0.0001289,2]
[339064893,1727188238497,-150.25,0.0001289,2]
[339064895,1727188238506,-150.25,0.0001289,2]
[339064897,1727188238516,-150.25,0.0001289,2]
[339064899,1727188238525,-150.25,0.0001289,2]
[339064901,1727188238533,-150.25,0.0001289,2]
[339064903,1727188238542,-150.25,0.0001289,2]
[339064904,1727188238551,-150.25,0.0001289,2]
[339064906,1727188238561,-150.25,0.0001289,2]
[339064908,1727188238570,-150.25,0.0001289,2]
[339064910,1727188238579,-150.25,0.0001289,2]
[339064912,1727188238588,-150.25,0.0001289,2]
[339064914,1727188238597,-150.25,0.0001289,2]
[339064916,1727188238606,-150.25,0.0001289,2]
[339064918,1727188238615,-150.25,0.0001289,2]
[339064920,1727188238624,-150.25,0.0001289,2]
[339064922,1727188238634,-150.25,0.0001289,2]
[339064924,1727188238643,-150.25,0.0001289,2]
[339064926,1727188238652,-150.25,0.0001289,2]
[339064928,1727188238662,-150.25,0.0001289,2]
[339064930,1727188238671,-150.25,0.0001289,2]
[339064932,1727188238680,-150.25,0.0001289,2]
[339064934,1727188238690,-150.25,0.0001289,2]
[339064936,1727188238700,-150.25,0.0001289,2]
[339064938,1727188238709,-150.25,0.0001289,2]
[339064940,1727188238719,-150.25,0.0001289,2]
[339064942,1727188238728,-150.25,0.0001289,2]
[339064944,1727188238737,-150.25,0.0001289,2]
[339064946,1727188238747,-150.25,0.0001289,2]
[339064948,1727188238756,-150.25,0.0001289,2]
[339064950,1727188238766,-150.25,0.0001289,2]
[339064952,1727188238776,-150.25,0.0001289,2]
[339064954,1727188238785,-150.25,0.0001289,2]
[339064956,1727188238795,-150.25,0.0001289,2]
[339064958,1727188238804,-150.25,0.0001289,2]
[339064961,1727188238813,-150.25,0.0001289,2]